[Event "*** Titled Tuesday Blitz"]
[Site "Chess.com"]
[Date "2021.02.02"]
[Round "8"]
[White "Meri-Arabidze"]
[Black "OK97"]
[Result "1-0"]
[WhiteElo "2622"]
[BlackElo "2767"]
[TimeControl "180+1"]
[EndTime "11:30:30 PST"]
[Termination "Meri-Arabidze won by checkmate"]

1. d4 {[%clk 0:03:00.9]} 1... Nf6 {[%clk 0:02:58.6]} 2. c4 {[%clk 0:03:00.9]}
2... g6 {[%clk 0:02:59.2]} 3. Nf3 {[%clk 0:03:00.9]} 3... Bg7 {[%clk 0:02:58.8]}
4. g3 {[%clk 0:03:01.5]} 4... O-O {[%clk 0:02:57.7]} 5. Bg2 {[%clk 0:03:02.1]}
5... c5 {[%clk 0:02:52.1]} 6. d5 {[%clk 0:02:59.8]} 6... b5 {[%clk 0:02:51.5]}
7. cxb5 {[%clk 0:02:59.6]} 7... a6 {[%clk 0:02:51.1]} 8. bxa6 {[%clk 0:03:00.3]}
8... d6 {[%clk 0:02:51.1]} 9. O-O {[%clk 0:03:00.7]} 9... Nbd7 {[%clk
0:02:51.2]} 10. Nc3 {[%clk 0:03:01.1]} 10... Nb6 {[%clk 0:02:51.6]} 11. a7
{[%clk 0:02:56.5]} 11... Rxa7 {[%clk 0:02:50.3]} 12. Nd2 {[%clk 0:02:45.8]}
12... Bb7 {[%clk 0:02:47.1]} 13. e4 {[%clk 0:02:44.6]} 13... Ba6 {[%clk
0:02:47.4]} 14. Re1 {[%clk 0:02:44.7]} 14... Nfd7 {[%clk 0:02:45.8]} 15. Bf1
{[%clk 0:02:37.7]} 15... Ne5 {[%clk 0:02:21.2]} 16. Bxa6 {[%clk 0:02:31.8]}
16... Rxa6 {[%clk 0:02:22.1]} 17. Nf3 {[%clk 0:02:29.8]} 17... Nec4 {[%clk
0:02:13.5]} 18. Qe2 {[%clk 0:02:25.4]} 18... Qa8 {[%clk 0:02:11.2]} 19. Bg5
{[%clk 0:02:21]} 19... Ra7 {[%clk 0:01:59.6]} 20. Nb5 {[%clk 0:02:08.3]} 20...
Ra5 {[%clk 0:01:53.8]} 21. Nc3 {[%clk 0:01:57.3]} 21... Nxb2 {[%clk 0:01:44.5]}
22. Rac1 {[%clk 0:01:09.5]} 22... N2c4 {[%clk 0:01:16]} 23. Bxe7 {[%clk
0:01:06.6]} 23... Re8 {[%clk 0:01:16.2]} 24. Bg5 {[%clk 0:01:05.1]} 24... h6
{[%clk 0:01:14.4]} 25. Bf4 {[%clk 0:00:58.2]} 25... g5 {[%clk 0:01:14.5]} 26.
Be3 {[%clk 0:00:53.3]} 26... Bxc3 {[%clk 0:01:07.6]} 27. Rxc3 {[%clk 0:00:54.2]}
27... Rxe4 {[%clk 0:01:01.5]} 28. Qd3 {[%clk 0:00:52.3]} 28... Qxd5 {[%clk
0:00:59.3]} 29. Qb1 {[%clk 0:00:23.7]} 29... Re6 {[%clk 0:00:47.5]} 30. Nd2
{[%clk 0:00:11.5]} 30... Nxd2 {[%clk 0:00:38.8]} 31. Bxd2 {[%clk 0:00:12.4]}
31... Nc4 {[%clk 0:00:19]} 32. Rxc4 {[%clk 0:00:10.1]} 32... Qxd2 {[%clk
0:00:16.5]} 33. Rxe6 {[%clk 0:00:10]} 33... fxe6 {[%clk 0:00:17.4]} 34. Qg6+
{[%clk 0:00:10.1]} 34... Kf8 {[%clk 0:00:15.6]} 35. Qf6+ {[%clk 0:00:10.3]}
35... Ke8 {[%clk 0:00:15]} 36. Qxe6+ {[%clk 0:00:10.6]} 36... Kd8 {[%clk
0:00:15.6]} 37. Re4 {[%clk 0:00:10.9]} 37... Kc7 {[%clk 0:00:11.2]} 38. Qe7+
{[%clk 0:00:10.2]} 38... Kc6 {[%clk 0:00:09.5]} 39. Qe8+ {[%clk 0:00:10.8]}
39... Kb6 {[%clk 0:00:06.9]} 40. Qb8+ {[%clk 0:00:09.4]} 40... Kc6 {[%clk
0:00:06.5]} 41. Qc8+ {[%clk 0:00:08.9]} 41... Kb6 {[%clk 0:00:05.5]} 42. Re7
{[%clk 0:00:07.8]} 42... Qd1+ {[%clk 0:00:05.1]} 43. Kg2 {[%clk 0:00:08.1]}
43... Qd5+ {[%clk 0:00:06]} 44. Kh3 {[%clk 0:00:07.5]} 44... Qc6 {[%clk
0:00:04]} 45. Qb8+ {[%clk 0:00:06.1]} 45... Ka6 {[%clk 0:00:03.2]} 46. Ra7#
{[%clk 0:00:06.2]} 1-0

[Event "*** Titled Tuesday Blitz"]
[Site "Chess.com"]
[Date "2021.02.02"]
[Round "8"]
[White "ChampStan"]
[Black "ehrenfeld"]
[Result "1-0"]
[WhiteElo "2190"]
[BlackElo "2499"]
[TimeControl "180+1"]
[EndTime "11:30:30 PST"]
[Termination "ChampStan won on time"]

1. d4 {[%clk 0:03:00.9]} 1... Nf6 {[%clk 0:02:59.4]} 2. c4 {[%clk 0:03:00.5]}
2... e6 {[%clk 0:02:59.5]} 3. Nc3 {[%clk 0:02:58.2]} 3... Bb4 {[%clk 0:02:59.3]}
4. Qc2 {[%clk 0:02:58.2]} 4... d6 {[%clk 0:02:58.5]} 5. a3 {[%clk 0:02:52.3]}
5... Bxc3+ {[%clk 0:02:57.4]} 6. Qxc3 {[%clk 0:02:52.9]} 6... Nbd7 {[%clk
0:02:56.8]} 7. Bg5 {[%clk 0:02:53.4]} 7... h6 {[%clk 0:02:54.8]} 8. Bh4 {[%clk
0:02:50.2]} 8... g5 {[%clk 0:02:51.4]} 9. Bg3 {[%clk 0:02:50.2]} 9... Ne4 {[%clk
0:02:51.2]} 10. Qc2 {[%clk 0:02:50.7]} 10... f5 {[%clk 0:02:50.9]} 11. e3 {[%clk
0:02:51.2]} 11... Qe7 {[%clk 0:02:48.3]} 12. Bd3 {[%clk 0:02:48.6]} 12... Ndf6
{[%clk 0:02:46]} 13. Ne2 {[%clk 0:02:39.9]} 13... Bd7 {[%clk 0:02:39.9]} 14. f3
{[%clk 0:02:33]} 14... Nxg3 {[%clk 0:02:38.9]} 15. hxg3 {[%clk 0:02:33.9]} 15...
O-O-O {[%clk 0:02:34]} 16. O-O-O {[%clk 0:02:30.9]} 16... Kb8 {[%clk 0:02:34]}
17. Kb1 {[%clk 0:02:30.1]} 17... h5 {[%clk 0:02:27.5]} 18. Nc3 {[%clk 0:02:05]}
18... h4 {[%clk 0:02:16.4]} 19. gxh4 {[%clk 0:02:02.1]} 19... gxh4 {[%clk
0:02:15.8]} 20. e4 {[%clk 0:01:50.7]} 20... fxe4 {[%clk 0:02:14.7]} 21. Nxe4
{[%clk 0:01:49.5]} 21... Nxe4 {[%clk 0:02:10]} 22. Bxe4 {[%clk 0:01:48.5]} 22...
Qf6 {[%clk 0:01:52.4]} 23. Qf2 {[%clk 0:01:20.4]} 23... d5 {[%clk 0:01:31.1]}
24. Bd3 {[%clk 0:01:05]} 24... Ba4 {[%clk 0:01:29.4]} 25. Rd2 {[%clk 0:01:02.3]}
25... dxc4 {[%clk 0:01:19.7]} 26. Bxc4 {[%clk 0:01:03.2]} 26... Bc6 {[%clk
0:01:19.9]} 27. Re1 {[%clk 0:00:57.6]} 27... Bd5 {[%clk 0:01:15.5]} 28. Bxd5
{[%clk 0:00:54.9]} 28... exd5 {[%clk 0:01:14.8]} 29. Re5 {[%clk 0:00:50.8]}
29... h3 {[%clk 0:01:10.3]} 30. gxh3 {[%clk 0:00:48.3]} 30... Rxh3 {[%clk
0:01:09.6]} 31. f4 {[%clk 0:00:42.7]} 31... Rg8 {[%clk 0:00:40.4]} 32. f5 {[%clk
0:00:29.7]} 32... Rh1+ {[%clk 0:00:35.3]} 33. Ka2 {[%clk 0:00:28]} 33... a5
{[%clk 0:00:32]} 34. Re6 {[%clk 0:00:22.5]} 34... Qf7 {[%clk 0:00:20.4]} 35. Qf4
{[%clk 0:00:20.2]} 35... a4 {[%clk 0:00:15.3]} 36. Rde2 {[%clk 0:00:06.9]} 36...
Rgg1 {[%clk 0:00:10.9]} 37. b4 {[%clk 0:00:06.4]} 37... axb3+ {[%clk 0:00:09.8]}
38. Kxb3 {[%clk 0:00:06.1]} 38... Qd7 {[%clk 0:00:07.2]} 39. a4 {[%clk
0:00:04.6]} 39... Rb1+ {[%clk 0:00:06.1]} 40. Kc3 {[%clk 0:00:04.8]} 40... Rhc1+
{[%clk 0:00:04.7]} 41. Kd3 {[%clk 0:00:03.8]} 41... Qxa4 {[%clk 0:00:03.2]} 42.
Re8+ {[%clk 0:00:03.3]} 42... Ka7 {[%clk 0:00:03.3]} 43. Ke3 {[%clk 0:00:03.7]}
43... Rb3+ {[%clk 0:00:01.3]} 44. Kf2 {[%clk 0:00:04.2]} 1-0

[Event "*** Titled Tuesday Blitz"]
[Site "Chess.com"]
[Date "2021.02.02"]
[Round "8"]
[White "CSB7"]
[Black "Orest_Vovk"]
[Result "1-0"]
[WhiteElo "2587"]
[BlackElo "2461"]
[TimeControl "180+1"]
[EndTime "11:30:31 PST"]
[Termination "CSB7 won by resignation"]

1. e4 {[%clk 0:03:00.9]} 1... g5 {[%clk 0:02:59.9]} 2. d4 {[%clk 0:02:54.5]}
2... g4 {[%clk 0:02:59.9]} 3. Qxg4 {[%clk 0:02:46.4]} 3... d5 {[%clk 0:02:59.7]}
4. Qe2 {[%clk 0:02:44.9]} 4... dxe4 {[%clk 0:02:59.8]} 5. Qxe4 {[%clk
0:02:45.1]} 5... Nf6 {[%clk 0:03:00.3]} 6. Qd3 {[%clk 0:02:44.2]} 6... Nc6
{[%clk 0:03:00.4]} 7. Nf3 {[%clk 0:02:44]} 7... Bg4 {[%clk 0:03:00.4]} 8. Nbd2
{[%clk 0:02:39.2]} 8... Qd5 {[%clk 0:02:47.8]} 9. c4 {[%clk 0:02:15.2]} 9... Qh5
{[%clk 0:02:40.2]} 10. g3 {[%clk 0:01:31.5]} 10... O-O-O {[%clk 0:02:34.6]} 11.
Bg2 {[%clk 0:01:30.1]} 11... e5 {[%clk 0:02:13.6]} 12. O-O {[%clk 0:01:14.9]}
12... exd4 {[%clk 0:01:47.4]} 13. a3 {[%clk 0:01:02.8]} 13... Qf5 {[%clk
0:01:22.5]} 14. Qxf5+ {[%clk 0:00:58.6]} 14... Bxf5 {[%clk 0:01:23.4]} 15. b4
{[%clk 0:00:57.7]} 15... Bd3 {[%clk 0:01:14.7]} 16. Re1 {[%clk 0:00:57.1]} 16...
a6 {[%clk 0:01:04]} 17. Bb2 {[%clk 0:00:55.6]} 17... Bh6 {[%clk 0:00:58.3]} 18.
b5 {[%clk 0:00:37.5]} 18... axb5 {[%clk 0:00:55.9]} 19. cxb5 {[%clk 0:00:38.4]}
19... Bxb5 {[%clk 0:00:55.7]} 20. Nb3 {[%clk 0:00:38.9]} 20... Ba4 {[%clk
0:00:40.3]} 21. Nbxd4 {[%clk 0:00:34.2]} 21... Nxd4 {[%clk 0:00:35.3]} 22. Nxd4
{[%clk 0:00:22.4]} 22... Bd7 {[%clk 0:00:19.9]} 23. Nf5 {[%clk 0:00:12.6]} 23...
Bxf5 {[%clk 0:00:19.8]} 24. Bxf6 {[%clk 0:00:13]} 24... Rhe8 {[%clk 0:00:18.8]}
25. Bxd8 {[%clk 0:00:12.5]} 25... Rxd8 {[%clk 0:00:19.1]} 26. Be4 {[%clk
0:00:10.5]} 26... Be6 {[%clk 0:00:14.3]} 27. Bxh7 {[%clk 0:00:09.2]} 27... Bg7
{[%clk 0:00:14.1]} 28. Rad1 {[%clk 0:00:09.5]} 28... Rh8 {[%clk 0:00:13.9]} 29.
Bd3 {[%clk 0:00:07.1]} 29... c6 {[%clk 0:00:13.6]} 30. Kg2 {[%clk 0:00:03.5]}
30... Kc7 {[%clk 0:00:13.9]} 31. Be4 {[%clk 0:00:04.1]} 31... Ra8 {[%clk
0:00:12.4]} 32. Rd3 {[%clk 0:00:04.5]} 32... Bc4 {[%clk 0:00:10.7]} 33. Rf3
{[%clk 0:00:04.5]} 33... Bb2 {[%clk 0:00:07.8]} 34. Bd3 {[%clk 0:00:03.2]} 34...
Bd5 {[%clk 0:00:06.9]} 35. Be4 {[%clk 0:00:03.8]} 35... Be6 {[%clk 0:00:06.7]}
36. h4 {[%clk 0:00:03.9]} 36... Rxa3 {[%clk 0:00:04.7]} 37. Rxa3 {[%clk
0:00:03.1]} 37... Bxa3 {[%clk 0:00:05.6]} 38. h5 {[%clk 0:00:03.6]} 38... Bb2
{[%clk 0:00:05.8]} 39. h6 {[%clk 0:00:03.4]} 39... b5 {[%clk 0:00:05.7]} 40. f4
{[%clk 0:00:03.7]} 40... Bh8 {[%clk 0:00:04.4]} 41. f5 {[%clk 0:00:03.8]} 41...
Bc4 {[%clk 0:00:04.1]} 42. g4 {[%clk 0:00:04]} 42... b4 {[%clk 0:00:03.2]} 43.
g5 {[%clk 0:00:04.5]} 43... b3 {[%clk 0:00:02.2]} 44. g6 {[%clk 0:00:05]} 44...
fxg6 {[%clk 0:00:02]} 45. fxg6 {[%clk 0:00:05.9]} 45... Bd5 {[%clk 0:00:02.1]}
46. Bxd5 {[%clk 0:00:05.8]} 46... cxd5 {[%clk 0:00:03]} 47. g7 {[%clk
0:00:06.2]} 47... Bxg7 {[%clk 0:00:03.8]} 48. hxg7 {[%clk 0:00:06.4]} 48... b2
{[%clk 0:00:04.7]} 49. g8=Q {[%clk 0:00:07]} 1-0

[Event "*** Titled Tuesday Blitz"]
[Site "Chess.com"]
[Date "2021.02.02"]
[Round "8"]
[White "imdvb6307"]
[Black "Ze-Pequeno"]
[Result "1-0"]
[WhiteElo "2379"]
[BlackElo "2220"]
[TimeControl "180+1"]
[EndTime "11:30:31 PST"]
[Termination "imdvb6307 won on time"]

1. c4 {[%clk 0:03:00.9]} 1... Nf6 {[%clk 0:02:59.2]} 2. Nc3 {[%clk 0:03:00.3]}
2... g6 {[%clk 0:02:56.1]} 3. e4 {[%clk 0:03:00]} 3... d6 {[%clk 0:02:55.8]} 4.
Nf3 {[%clk 0:02:59.5]} 4... Bg7 {[%clk 0:02:55.9]} 5. d4 {[%clk 0:02:59.5]} 5...
O-O {[%clk 0:02:55.7]} 6. Be2 {[%clk 0:02:59.6]} 6... e5 {[%clk 0:02:52]} 7. O-O
{[%clk 0:02:59.8]} 7... Nc6 {[%clk 0:02:52]} 8. d5 {[%clk 0:03:00]} 8... Ne7
{[%clk 0:02:52.1]} 9. Ne1 {[%clk 0:03:00.6]} 9... Nd7 {[%clk 0:02:50.8]} 10. f3
{[%clk 0:03:01.1]} 10... f5 {[%clk 0:02:50.2]} 11. g4 {[%clk 0:03:01.7]} 11...
f4 {[%clk 0:02:35.6]} 12. h4 {[%clk 0:02:56.9]} 12... a5 {[%clk 0:02:27.8]} 13.
Nd3 {[%clk 0:02:46.4]} 13... c5 {[%clk 0:02:17.5]} 14. dxc6 {[%clk 0:02:37.8]}
14... Nxc6 {[%clk 0:02:15.8]} 15. Nb5 {[%clk 0:02:35.2]} 15... Qxh4 {[%clk
0:02:09.9]} 16. Qe1 {[%clk 0:02:35.1]} 16... Qe7 {[%clk 0:02:06.8]} 17. Nc7
{[%clk 0:01:52.9]} 17... Rb8 {[%clk 0:01:58.4]} 18. Kg2 {[%clk 0:01:50.2]} 18...
Nc5 {[%clk 0:01:48.8]} 19. Nd5 {[%clk 0:01:47.4]} 19... Qd8 {[%clk 0:01:44.5]}
20. Nf2 {[%clk 0:01:36.7]} 20... Nd4 {[%clk 0:01:41.9]} 21. Rh1 {[%clk
0:01:34.6]} 21... Be6 {[%clk 0:01:22.3]} 22. Bd1 {[%clk 0:01:22.7]} 22... b5
{[%clk 0:01:18.5]} 23. Bd2 {[%clk 0:01:16.6]} 23... b4 {[%clk 0:01:12.9]} 24.
Qg1 {[%clk 0:00:51.2]} 24... h6 {[%clk 0:01:09.2]} 25. Qh2 {[%clk 0:00:50.5]}
25... Rb7 {[%clk 0:01:07.8]} 26. Qh4 {[%clk 0:00:50.3]} 26... g5 {[%clk
0:00:51.6]} 27. Qh2 {[%clk 0:00:49]} 27... Qd7 {[%clk 0:00:47.2]} 28. Qg1 {[%clk
0:00:48.9]} 28... Qf7 {[%clk 0:00:46.6]} 29. Rc1 {[%clk 0:00:45.2]} 29... Ra8
{[%clk 0:00:45.7]} 30. Qf1 {[%clk 0:00:44.9]} 30... Qd7 {[%clk 0:00:44.8]} 31.
Be2 {[%clk 0:00:44.8]} 31... Qd8 {[%clk 0:00:44.5]} 32. Nd3 {[%clk 0:00:42.7]}
32... Nxd3 {[%clk 0:00:41.6]} 33. Bxd3 {[%clk 0:00:42.3]} 33... Rc8 {[%clk
0:00:39.8]} 34. Be1 {[%clk 0:00:42.2]} 34... Rf7 {[%clk 0:00:35.9]} 35. Bf2
{[%clk 0:00:42]} 35... Nc6 {[%clk 0:00:34]} 36. Qd1 {[%clk 0:00:41.4]} 36... Rb8
{[%clk 0:00:33.2]} 37. Be2 {[%clk 0:00:41.4]} 37... Qf8 {[%clk 0:00:30.2]} 38.
Qa4 {[%clk 0:00:41.1]} 38... Ne7 {[%clk 0:00:28.8]} 39. Rh3 {[%clk 0:00:37]}
39... Ra8 {[%clk 0:00:25.9]} 40. Nc7 {[%clk 0:00:36.3]} 40... Qc8 {[%clk
0:00:23.2]} 41. Nxa8 {[%clk 0:00:35.8]} 41... Qxa8 {[%clk 0:00:24.1]} 42. c5
{[%clk 0:00:34.6]} 42... d5 {[%clk 0:00:23.3]} 43. Bd3 {[%clk 0:00:32.7]} 43...
Nc6 {[%clk 0:00:15.8]} 44. Re1 {[%clk 0:00:29.5]} 44... Rd7 {[%clk 0:00:12.5]}
45. exd5 {[%clk 0:00:27.7]} 45... Bxd5 {[%clk 0:00:12.3]} 46. Be4 {[%clk
0:00:27.7]} 46... Bxe4 {[%clk 0:00:12.2]} 47. Rxe4 {[%clk 0:00:27.7]} 47... Rd2
{[%clk 0:00:11.8]} 48. Qb3+ {[%clk 0:00:27.8]} 48... Kh8 {[%clk 0:00:10.3]} 49.
Qe6 {[%clk 0:00:27.7]} 49... Nd4 {[%clk 0:00:07.7]} 50. Rxh6+ {[%clk 0:00:25]}
50... Bxh6 {[%clk 0:00:08.6]} 51. Qxh6+ {[%clk 0:00:24.3]} 51... Kg8 {[%clk
0:00:09.5]} 52. Qxg5+ {[%clk 0:00:24.1]} 52... Kf7 {[%clk 0:00:10.4]} 53. Qxe5
{[%clk 0:00:23.8]} 1-0

[Event "*** Titled Tuesday Blitz"]
[Site "Chess.com"]
[Date "2021.02.02"]
[Round "8"]
[White "Unknown_IM"]
[Black "IMAghasiyevKamal"]
[Result "0-1"]
[WhiteElo "2374"]
[BlackElo "2575"]
[TimeControl "180+1"]
[EndTime "11:30:33 PST"]
[Termination "IMAghasiyevKamal won by resignation"]

1. e4 {[%clk 0:03:00.9]} 1... e5 {[%clk 0:02:55.2]} 2. Nf3 {[%clk 0:03:00.4]}
2... Nc6 {[%clk 0:02:49.9]} 3. Bb5 {[%clk 0:02:59.8]} 3... a6 {[%clk 0:02:49.4]}
4. Ba4 {[%clk 0:02:59.7]} 4... d6 {[%clk 0:02:48.5]} 5. c3 {[%clk 0:02:59]} 5...
Bd7 {[%clk 0:02:46.6]} 6. O-O {[%clk 0:02:57.4]} 6... g6 {[%clk 0:02:45.6]} 7.
d4 {[%clk 0:02:56.5]} 7... Bg7 {[%clk 0:02:44.4]} 8. Be3 {[%clk 0:02:55.9]} 8...
Nf6 {[%clk 0:02:39]} 9. Bc2 {[%clk 0:02:53.9]} 9... O-O {[%clk 0:02:36.2]} 10.
h3 {[%clk 0:02:53]} 10... Re8 {[%clk 0:02:26.2]} 11. Nbd2 {[%clk 0:02:51.3]}
11... Nh5 {[%clk 0:02:14]} 12. dxe5 {[%clk 0:02:48.6]} 12... dxe5 {[%clk
0:02:06.7]} 13. Nb3 {[%clk 0:02:45.6]} 13... b6 {[%clk 0:02:03.8]} 14. Qe2
{[%clk 0:02:43.4]} 14... Qe7 {[%clk 0:02:00.4]} 15. Rad1 {[%clk 0:02:42.1]}
15... h6 {[%clk 0:02:00.3]} 16. Qd2 {[%clk 0:02:38.3]} 16... Rad8 {[%clk
0:01:56.4]} 17. Bxh6 {[%clk 0:02:20.4]} 17... Bg4 {[%clk 0:01:44.4]} 18. Qg5
{[%clk 0:02:16.5]} 18... Bxf3 {[%clk 0:01:42]} 19. Qxe7 {[%clk 0:02:04]} 19...
Nxe7 {[%clk 0:01:36.1]} 20. Rxd8 {[%clk 0:02:03.9]} 20... Rxd8 {[%clk 0:01:36]}
21. Bxg7 {[%clk 0:02:01.8]} 21... Kxg7 {[%clk 0:01:36]} 22. gxf3 {[%clk
0:02:01.5]} 22... Nf4 {[%clk 0:01:36.1]} 23. Rd1 {[%clk 0:02:00.8]} 23... Nxh3+
{[%clk 0:01:33.3]} 24. Kg2 {[%clk 0:01:59.6]} 24... Nf4+ {[%clk 0:01:25.7]} 25.
Kg1 {[%clk 0:01:57.1]} 25... Rxd1+ {[%clk 0:01:16.2]} 26. Bxd1 {[%clk
0:01:56.8]} 26... Nd3 {[%clk 0:01:16.4]} 27. Be2 {[%clk 0:01:55.2]} 27... Nxb2
{[%clk 0:01:16.2]} 28. Bxa6 {[%clk 0:01:55.7]} 28... Na4 {[%clk 0:01:14.7]} 29.
c4 {[%clk 0:01:55.3]} 29... Nc3 {[%clk 0:00:44.2]} 30. a3 {[%clk 0:01:54]} 30...
Kf6 {[%clk 0:00:43.6]} 31. Kg2 {[%clk 0:01:49]} 31... Ke6 {[%clk 0:00:41.2]} 32.
c5 {[%clk 0:01:48.6]} 32... b5 {[%clk 0:00:36.7]} 33. Kf1 {[%clk 0:00:46]} 33...
Kd7 {[%clk 0:00:34.5]} 34. Ke1 {[%clk 0:00:46.4]} 34... Kc6 {[%clk 0:00:32.9]}
35. Kd2 {[%clk 0:00:45.5]} 35... Na4 {[%clk 0:00:33.2]} 36. Kc2 {[%clk 0:00:10]}
36... Nxc5 {[%clk 0:00:32.1]} 37. Nxc5 {[%clk 0:00:10.9]} 37... Kxc5 {[%clk
0:00:32]} 38. a4 {[%clk 0:00:11.8]} 38... bxa4 {[%clk 0:00:28]} 39. Kc3 {[%clk
0:00:12.7]} 39... Nc6 {[%clk 0:00:25.9]} 40. Bc4 {[%clk 0:00:13.6]} 40... f6
{[%clk 0:00:24.9]} 41. Bf7 {[%clk 0:00:10.6]} 41... g5 {[%clk 0:00:24.4]} 42.
Kd3 {[%clk 0:00:05.8]} 42... Nd4 {[%clk 0:00:23.6]} 43. Ke3 {[%clk 0:00:06.7]}
43... Kb4 {[%clk 0:00:22.3]} 44. f4 {[%clk 0:00:06.4]} 44... gxf4+ {[%clk
0:00:22.1]} 45. Kd3 {[%clk 0:00:07.3]} 45... c5 {[%clk 0:00:20.5]} 46. Ba2
{[%clk 0:00:06.4]} 46... Nb3 {[%clk 0:00:19.9]} 47. Kc2 {[%clk 0:00:07.3]} 47...
c4 {[%clk 0:00:19.7]} 48. Kb2 {[%clk 0:00:07.1]} 48... c3+ {[%clk 0:00:19.5]}
49. Kc2 {[%clk 0:00:07.6]} 49... Kc4 {[%clk 0:00:19.1]} 50. Kb1 {[%clk
0:00:08.5]} 50... Kd3 {[%clk 0:00:19.3]} 51. Bxb3 {[%clk 0:00:05.3]} 51... axb3
{[%clk 0:00:20.2]} 52. f3 {[%clk 0:00:06.2]} 52... Kd2 {[%clk 0:00:19.7]} 0-1

[Event "*** Titled Tuesday Blitz"]
[Site "Chess.com"]
[Date "2021.02.02"]
[Round "8"]
[White "ARTHURMOTIVATOR"]
[Black "Make_it_shine060"]
[Result "1-0"]
[WhiteElo "2298"]
[BlackElo "2157"]
[TimeControl "180+1"]
[EndTime "11:30:33 PST"]
[Termination "ARTHURMOTIVATOR won on time"]

1. e4 {[%clk 0:03:00.9]} 1... c5 {[%clk 0:01:49.8]} 2. b3 {[%clk 0:02:59.2]}
2... g6 {[%clk 0:01:48.2]} 3. Bb2 {[%clk 0:02:58.8]} 3... Nf6 {[%clk 0:01:48.1]}
4. e5 {[%clk 0:02:59.4]} 4... Nh5 {[%clk 0:01:46.1]} 5. Nf3 {[%clk 0:02:55.4]}
5... Bg7 {[%clk 0:01:45]} 6. Bc4 {[%clk 0:02:51.6]} 6... Nc6 {[%clk 0:01:38.2]}
7. O-O {[%clk 0:02:49.5]} 7... O-O {[%clk 0:01:37.5]} 8. Re1 {[%clk 0:02:46.8]}
8... d5 {[%clk 0:01:36.8]} 9. Bf1 {[%clk 0:02:45.3]} 9... Nf4 {[%clk 0:01:29.4]}
10. d3 {[%clk 0:02:40.9]} 10... Bg4 {[%clk 0:01:20.7]} 11. Nbd2 {[%clk 0:02:38]}
11... d4 {[%clk 0:01:13.4]} 12. h3 {[%clk 0:02:36.1]} 12... Bxf3 {[%clk
0:01:09.7]} 13. Nxf3 {[%clk 0:02:36.5]} 13... Qd5 {[%clk 0:01:09.5]} 14. g3
{[%clk 0:02:12.2]} 14... Ne6 {[%clk 0:01:04.1]} 15. Bg2 {[%clk 0:02:11.9]} 15...
Qd7 {[%clk 0:01:01.4]} 16. h4 {[%clk 0:02:06.8]} 16... Qc7 {[%clk 0:00:58.5]}
17. Qe2 {[%clk 0:02:04.7]} 17... Rad8 {[%clk 0:00:57.7]} 18. Bc1 {[%clk
0:01:59.6]} 18... Rd5 {[%clk 0:00:50.2]} 19. Bf4 {[%clk 0:01:57.4]} 19... Nxf4
{[%clk 0:00:39.9]} 20. gxf4 {[%clk 0:01:58.3]} 20... e6 {[%clk 0:00:34.4]} 21.
h5 {[%clk 0:01:51.1]} 21... Rdd8 {[%clk 0:00:31.5]} 22. Ng5 {[%clk 0:01:46.2]}
22... Ne7 {[%clk 0:00:24.4]} 23. Qg4 {[%clk 0:01:37.3]} 23... Nf5 {[%clk
0:00:22.3]} 24. hxg6 {[%clk 0:01:26.3]} 24... hxg6 {[%clk 0:00:20]} 25. Be4
{[%clk 0:01:23.8]} 25... Nh6 {[%clk 0:00:19.2]} 26. Qh3 {[%clk 0:01:21.3]} 26...
Qe7 {[%clk 0:00:18.4]} 27. Kg2 {[%clk 0:01:01.7]} 27... f5 {[%clk 0:00:16.9]}
28. Bf3 {[%clk 0:00:54]} 28... Rfe8 {[%clk 0:00:11.4]} 29. Rh1 {[%clk
0:00:51.8]} 29... Qc7 {[%clk 0:00:09.9]} 30. Qg3 {[%clk 0:00:48.9]} 30... Kf8
{[%clk 0:00:07.5]} 31. Rh4 {[%clk 0:00:43.9]} 31... Ke7 {[%clk 0:00:06.5]} 32.
Nxe6 {[%clk 0:00:32.7]} 32... Kxe6 {[%clk 0:00:05.7]} 33. Qxg6+ {[%clk 0:00:33]}
33... Kd7 {[%clk 0:00:05.6]} 34. Qxg7+ {[%clk 0:00:21.7]} 34... Re7 {[%clk
0:00:05.5]} 35. Qxh6 {[%clk 0:00:20.6]} 35... Rg8+ {[%clk 0:00:05.8]} 36. Kh1
{[%clk 0:00:20]} 36... Reg7 {[%clk 0:00:06]} 37. Qf6 {[%clk 0:00:17.3]} 37...
Kc8 {[%clk 0:00:05.2]} 38. Qxf5+ {[%clk 0:00:17.2]} 38... Kb8 {[%clk 0:00:04.8]}
39. Re1 {[%clk 0:00:15.9]} 39... Qd8 {[%clk 0:00:04.6]} 40. Rh3 {[%clk 0:00:14]}
40... Qe8 {[%clk 0:00:03.2]} 41. e6 {[%clk 0:00:13.5]} 41... Qe7 {[%clk
0:00:02]} 42. Qe5+ {[%clk 0:00:13.6]} 42... Ka8 {[%clk 0:00:02.1]} 43. f5 {[%clk
0:00:14.5]} 43... Rg5 {[%clk 0:00:01.7]} 44. Qe4 {[%clk 0:00:13]} 44... Qg7
{[%clk 0:00:01.3]} 45. Qxb7+ {[%clk 0:00:07]} 1-0